bitfinex-derivatives/quotes_BTCF0:USTF0_20251009
["timestamp","ask_amount","ask_price","bid_price","bid_amount"]
[1760022017035,0.37942841,121530.0,121520.0,0.92112]
[1760022017237,0.3608,121530.0,121520.0,0.921]
[1760022017441,0.3618,121530.0,121520.0,1.30579114]
[1760022017639,0.01977675,121530.0,121520.0,0.52315114]
[1760022017941,0.001,121530.0,121520.0,0.92092]
[1760022018436,0.001,121530.0,121520.0,0.13836]
[1760022018636,0.001,121530.0,121520.0,0.92084]
[1760022019031,0.001,121530.0,121520.0,2.06643114]
[1760022019238,0.001,121530.0,121520.0,2.14868914]
[1760022019431,0.001,121530.0,121520.0,1.68164]
[1760022019636,0.001,121530.0,121520.0,2.06643114]
[1760022020037,0.001,121530.0,121520.0,2.06635114]
[1760022020238,0.001,121530.0,121520.0,1.28395114]
[1760022020445,0.01937963,121550.0,121540.0,0.13836]
[1760022020446,0.38017963,121550.0,121540.0,0.13836]
[1760022020838,0.38017963,121550.0,121540.0,0.92068]
[1760022021039,0.38017963,121550.0,121540.0,0.92064]
[1760022021339,0.41803963,121550.0,121540.0,0.92064]
[1760022021539,0.38217963,121550.0,121540.0,0.92064]
[1760022021735,0.02137963,121550.0,121540.0,0.9206]
[1760022022041,0.002,121550.0,121540.0,0.92056]
[1760022023243,0.002,121550.0,121540.0,1.30535114]
[1760022023445,0.002,121550.0,121540.0,2.06607114]
[1760022023740,0.002,121550.0,121540.0,1.34977963]
[1760022023946,0.002,121550.0,121540.0,3.82597963]
[1760022024245,0.002,121550.0,121540.0,4.18677963]
[1760022024644,0.002,121550.0,121540.0,3.44106849]
[1760022024944,0.002,121550.0,121540.0,3.82577963]
[1760022025145,0.002,121550.0,121540.0,4.18657963]
[1760022026037,0.002,121550.0,121540.0,3.40461963]
[1760022026236,0.002,121550.0,121540.0,4.14478283]
[1760022026441,0.41124,121580.0,121560.0,0.05344]
[1760022026644,0.3608,121580.0,121570.0,1.16350434]
[1760022026940,0.41124,121590.0,121570.0,1.56350434]
[1760022027145,0.3608,121590.0,121570.0,1.16350434]
[1760022027341,0.3608,121590.0,121580.0,0.66346434]
[1760022027744,0.41906793,121600.0,121580.0,0.38170434]
[1760022027938,0.41906793,121600.0,121590.0,0.03867]
[1760022028145,0.41906793,121600.0,121590.0,0.82035]
[1760022028846,0.50723793,121600.0,121590.0,0.82031]
[1760022029045,0.50823793,121600.0,121590.0,0.03867]
[1760022029439,0.50823793,121600.0,121590.0,0.82027]
[1760022029645,0.42106793,121600.0,121590.0,0.82027]
[1760022030047,0.00982793,121600.0,121590.0,0.82027]
[1760022030348,0.00882793,121600.0,121590.0,1.22027]
[1760022030648,0.00882793,121600.0,121590.0,1.31435099]
[1760022030841,0.00882793,121600.0,121590.0,2.09579099]
[1760022031038,0.00882793,121600.0,121590.0,2.01358039]
[1760022031444,0.00882793,121600.0,121590.0,1.23214039]
[1760022031746,0.00882793,121600.0,121590.0,2.09571099]
[1760022031941,0.00882793,121600.0,121590.0,1.31435099]
[1760022032148,0.00882793,121600.0,121590.0,2.09567099]
[1760022032544,0.00882793,121600.0,121590.0,1.67042605]
[1760022032738,0.00882793,121600.0,121590.0,2.01346039]
[1760022032943,0.001,121600.0,121590.0,1.23214039]
[1760022033243,0.001,121600.0,121590.0,4.06726039]
[1760022033549,0.41124,121630.0,121590.0,1.23214039]
[1760022033745,0.3608,121620.0,121600.0,2.83508]
[1760022034049,0.3608,121620.0,121610.0,0.34303434]
[1760022034250,0.41124,121630.0,121610.0,0.34303434]
[1760022034445,0.41124,121630.0,121620.0,0.34303434]
[1760022034751,0.001,121630.0,121620.0,0.42522474]
[1760022035049,0.001,121630.0,121620.0,2.79679434]
[1760022035246,0.001,121630.0,121620.0,3.95777172]
[1760022035551,0.001,121630.0,121620.0,3.95773172]
[1760022036044,0.3608,121640.0,121620.0,2.41585172]
[1760022036244,0.41224,121630.0,121610.0,0.34303434]
[1760022036450,0.41224,121630.0,121620.0,2.83456]
[1760022036645,0.05044,121620.0,121610.0,2.05356]
[1760022036845,0.41124,121620.0,121610.0,2.8344]
[1760022037047,0.41124,121620.0,121610.0,2.05356]
[1760022037251,0.3608,121620.0,121610.0,3.17739434]
[1760022037547,0.41124,121620.0,121600.0,0.34303434]
[1760022037746,0.41124,121610.0,121600.0,2.39647434]
[1760022037942,0.41124,121610.0,121600.0,3.17719434]
[1760022038451,0.41124,121610.0,121600.0,2.05344]
[1760022039145,0.41124,121610.0,121600.0,2.83412]
[1760022039343,0.05044,121600.0,121590.0,2.46186039]
[1760022039649,0.41124,121600.0,121590.0,0.34303434]
[1760022040051,0.41124,121600.0,121590.0,3.17699434]
[1760022040247,0.42990773,121600.0,121590.0,0.34303434]
[1760022040447,0.42990773,121600.0,121590.0,2.05332]
[1760022040647,0.41124,121600.0,121590.0,2.83488]
[1760022040852,0.41124,121600.0,121590.0,2.83588]
[1760022041054,0.42985265,121600.0,121590.0,2.83588]
[1760022041351,0.41124,121600.0,121590.0,2.83584]
[1760022042448,0.3608,121600.0,121590.0,3.24458919]
[1760022042655,0.3608,121600.0,121590.0,2.46414919]
[1760022042849,0.3608,121610.0,121590.0,4.00538919]
[1760022043056,0.05301,121600.0,121590.0,0.41082919]
[1760022043354,0.41381,121600.0,121590.0,0.06779485]
[1760022043847,1.24707434,121600.0,121590.0,0.002]
[1760022044054,0.52298139,121600.0,121590.0,0.002]
[1760022044350,0.52298139,121600.0,121590.0,0.70812]
[1760022044654,0.90404,121600.0,121590.0,0.70812]
[1760022045048,0.90404,121600.0,121590.0,0.002]
[1760022045255,0.90404,121600.0,121590.0,0.78128]
[1760022046155,0.41381,121600.0,121590.0,0.78124]
[1760022046350,0.3608,121600.0,121590.0,1.52323434]
[1760022046558,0.41381,121610.0,121590.0,0.82524484]
[1760022046752,0.3608,121620.0,121600.0,3.25867804]
[1760022047057,0.41124,121630.0,121610.0,0.42523134]
[1760022047250,0.43345207,121630.0,121620.0,0.7802]
[1760022047451,0.43345207,121630.0,121620.0,0.34303434]
[1760022047646,0.38301207,121630.0,121620.0,0.82522454]
[1760022047855,0.3608,121640.0,121620.0,1.96614454]
[1760022048152,0.38302715,121640.0,121630.0,0.34303434]
[1760022048651,0.43796715,121640.0,121630.0,0.78008]
[1760022049453,0.43896715,121640.0,121630.0,0.78008]
[1760022049855,0.02322715,121640.0,121630.0,3.57623434]
[1760022050658,0.02322715,121640.0,121630.0,3.64361163]
[1760022050851,0.02322715,121640.0,121630.0,0.81041163]
[1760022051055,0.02322715,121640.0,121630.0,3.64337163]
[1760022051947,0.02322715,121640.0,121630.0,2.86345163]
[1760022052148,0.02322715,121640.0,121630.0,4.00413163]
[1760022052352,0.02322715,121640.0,121630.0,3.64333163]
[1760022052953,0.02322715,121640.0,121630.0,3.72551513]
[1760022053153,0.02322715,121640.0,121630.0,4.08619513]
[1760022053654,0.02322715,121640.0,121630.0,3.30643513]
[1760022053859,0.02322715,121640.0,121630.0,4.08615513]
[1760022054454,0.02322715,121640.0,121630.0,2.96340079]
[1760022054748,0.02322715,121640.0,121630.0,0.82817729]
[1760022054947,0.43896715,121640.0,121630.0,0.06737729]
[1760022055148,0.43896715,121640.0,121630.0,2.83244]
[1760022055356,0.43896715,121640.0,121630.0,2.0528]
[1760022055357,0.07816715,121640.0,121630.0,2.0528]
[1760022055557,0.41674,121640.0,121630.0,2.8324]
[1760022055753,0.41674,121640.0,121630.0,0.34303434]
[1760022055955,0.41674,121640.0,121630.0,2.05268]
[1760022056150,0.41674,121640.0,121630.0,2.05264]
[1760022056456,0.05494,121630.0,121610.0,0.72236516]
[1760022056656,0.05494,121620.0,121610.0,2.07117082]
[1760022056852,0.41574,121630.0,121610.0,3.55448516]
[1760022057059,0.41574,121620.0,121610.0,2.05264]
[1760022057246,0.41574,121620.0,121610.0,2.83208]
[1760022058457,0.05494,121610.0,121600.0,2.39567434]
[1760022058655,0.05494,121610.0,121600.0,3.17503434]
[1760022058855,0.41574,121620.0,121600.0,3.17503434]
[1760022059359,0.41574,121610.0,121590.0,0.37751697]
[1760022059560,0.41574,121610.0,121600.0,3.17503434]
[1760022059767,0.41574,121610.0,121600.0,3.17499434]
[1760022059950,0.41574,121630.0,121600.0,3.23867824]
[1760022060260,0.41574,121620.0,121610.0,1.12235434]
[1760022060554,0.3608,121620.0,121610.0,1.12231434]
[1760022060756,0.41574,121640.0,121620.0,0.0821876]
[1760022060951,0.41574,121640.0,121610.0,0.508075]
[1760022061157,0.41574,121640.0,121620.0,1.12227434]
[1760022061859,0.41674,121640.0,121620.0,1.20446304]
[1760022062057,0.41674,121640.0,121620.0,1.12227434]
[1760022062562,0.41674,121640.0,121630.0,0.7792]
[1760022062749,0.05494,121630.0,121610.0,0.40811484]
[1760022062954,0.05494,121630.0,121610.0,0.49031144]
[1760022063154,0.41574,121630.0,121620.0,0.34303434]
[1760022063353,0.05494,121630.0,121620.0,0.34303434]
[1760022063559,0.41674,121640.0,121620.0,1.20434374]
[1760022063854,0.41674,121640.0,121630.0,0.34303434]
[1760022064053,0.41674,121640.0,121620.0,0.42522374]
[1760022064253,0.41674,121640.0,121630.0,0.34303434]
[1760022064455,0.3618,121640.0,121630.0,1.12211434]
[1760022064853,0.3618,121640.0,121630.0,0.42521794]
[1760022065054,0.3618,121640.0,121630.0,1.20425794]
[1760022065458,0.3618,121640.0,121630.0,0.779]
[1760022065662,0.001,121640.0,121630.0,0.42521794]
[1760022065855,0.001,121640.0,121630.0,1.96497794]
[1760022066656,0.001,121640.0,121630.0,1.18601794]
[1760022066852,0.001,121640.0,121630.0,4.01745794]
[1760022067061,0.001,121640.0,121630.0,4.01741794]
[1760022067263,0.41574,121670.0,121640.0,0.0821727]
[1760022067468,0.41574,121650.0,121630.0,0.3608]
[1760022067656,0.05494,121640.0,121630.0,2.41328]
[1760022067861,0.41574,121640.0,121630.0,2.05248]
[1760022068063,0.3608,121640.0,121630.0,3.25753794]
[1760022068363,0.3608,121640.0,121630.0,3.17631434]
[1760022068658,0.3608,121640.0,121630.0,3.25849794]
[1760022068863,0.41574,121650.0,121630.0,2.9154636]
[1760022069066,0.41574,121650.0,121630.0,3.61929794]
[1760022069459,0.41574,121650.0,121640.0,0.8608969]
[1760022069666,0.41574,121660.0,121640.0,1.20393124]
[1760022069865,0.41574,121660.0,121640.0,0.34303434]
[1760022070166,0.41574,121660.0,121650.0,0.77872]
[1760022070358,0.41574,121660.0,121640.0,0.34303434]
[1760022070570,0.41574,121670.0,121650.0,1.20388444]
[1760022070760,0.43702137,121670.0,121660.0,0.18606868]
[1760022070962,0.42356793,121680.0,121660.0,0.26823198]
[1760022071162,0.42356793,121680.0,121670.0,0.77864]
[1760022071361,0.82356793,121680.0,121670.0,0.77864]
[1760022071563,0.42356793,121680.0,121660.0,0.26823198]
[1760022071763,0.42356793,121680.0,121670.0,0.7786]
[1760022073065,0.06276793,121680.0,121670.0,0.77852]
[1760022073368,0.00782793,121680.0,121670.0,1.12155434]
[1760022073564,0.00782793,121680.0,121670.0,2.05224]
[1760022073565,0.06095793,121680.0,121670.0,2.05224]
[1760022073770,0.06095793,121680.0,121670.0,2.83172]
[1760022073971,0.06095793,121680.0,121670.0,2.05324]
[1760022074271,0.00782793,121680.0,121670.0,2.98087615]
[1760022074465,0.00782793,121680.0,121670.0,2.98187615]
[1760022074730,0.00782793,121680.0,121670.0,3.32491049]
[1760022075270,0.00782793,121680.0,121670.0,3.68571049]
[1760022075470,0.00782793,121680.0,121670.0,2.82511389]
[1760022075665,0.06095793,121680.0,121670.0,0.06903955]
[1760022075871,0.00782793,121680.0,121670.0,2.89951955]
[1760022076262,0.00782793,121680.0,121670.0,3.34247615]
[1760022076471,0.00782793,121680.0,121670.0,4.06411615]
[1760022076673,0.00782793,121680.0,121670.0,4.84239615]
[1760022077069,0.00782793,121680.0,121670.0,4.85944523]
[1760022077566,0.00782793,121680.0,121670.0,4.42419957]
[1760022077766,0.00782793,121680.0,121670.0,4.82419957]
[1760022078069,0.00782793,121680.0,121670.0,2.77207957]
[1760022078271,0.00782793,121680.0,121670.0,4.48100523]
[1760022078473,0.00782793,121680.0,121670.0,4.82403957]
[1760022078668,0.00782793,121680.0,121670.0,2.77207957]
[1760022078874,0.00782793,121680.0,121670.0,5.60215957]
[1760022079271,0.00782793,121680.0,121670.0,2.77207957]
[1760022079471,0.00782793,121680.0,121670.0,5.60207957]
[1760022080277,0.00782793,121680.0,121670.0,4.82391957]
[1760022080482,0.00782793,121680.0,121670.0,5.60195957]
[1760022080872,0.00782793,121680.0,121670.0,5.60187957]
[1760022081177,0.00782793,121680.0,121670.0,5.60183957]
[1760022081378,0.00782793,121680.0,121670.0,2.77207957]
[1760022081682,0.00782793,121680.0,121670.0,5.60175957]
[1760022081881,0.00782793,121680.0,121670.0,4.82383957]
[1760022082087,0.00782793,121680.0,121670.0,5.60171957]
[1760022082678,3e-08,121680.0,121670.0,4.82383957]
[1760022082980,0.05313,121720.0,121690.0,0.0821413]
[1760022083284,0.05313,121710.0,121700.0,3.25465064]
[1760022083485,0.41393,121720.0,121700.0,2.47685064]
[1760022083685,0.43524308,121720.0,121700.0,0.42517064]
[1760022083982,0.43624308,121720.0,121710.0,2.82944]
[1760022084182,0.41493,121720.0,121710.0,2.05168]
[1760022084372,0.41493,121720.0,121710.0,2.82944]
[1760022084572,0.41493,121720.0,121710.0,2.8294]
[1760022084776,0.41493,121720.0,121710.0,2.82936]
[1760022084979,0.43624385,121720.0,121710.0,2.82936]
[1760022085382,0.43624385,121720.0,121710.0,2.1338096]
[1760022085682,0.41493,121720.0,121710.0,2.05168]
[1760022085883,0.41493,121720.0,121710.0,2.82932]
[1760022086080,0.05413,121720.0,121710.0,2.9114496]
[1760022086281,0.001,121720.0,121710.0,2.4946096]
[1760022086484,0.001,121720.0,121710.0,3.61524394]
[1760022086885,0.001,121720.0,121710.0,2.83764394]
[1760022087083,0.001,121720.0,121710.0,4.07942961]
[1760022087281,0.001,121720.0,121710.0,4.12442961]
[1760022087586,0.001,121720.0,121710.0,4.20684961]
[1760022087788,0.001,121720.0,121710.0,3.86381527]
[1760022088084,0.001,121720.0,121710.0,1.03461527]
[1760022088282,0.001,121720.0,121710.0,2.60359527]
[1760022088681,0.41393,121740.0,121720.0,0.082122]
[1760022088878,0.41393,121740.0,121720.0,2.05136]
[1760022088879,0.41393,121730.0,121720.0,2.05136]
[1760022089084,0.43523634,121730.0,121720.0,3.21131296]
[1760022089284,0.43523634,121730.0,121710.0,0.44673863]
[1760022089590,0.41393,121720.0,121710.0,0.06622567]
[1760022089778,0.41393,121720.0,121710.0,2.89490567]
[1760022089979,0.41393,121730.0,121710.0,3.36154823]
[1760022090183,0.3819532,121730.0,121710.0,2.58418573]
[1760022090384,0.3819532,121730.0,121720.0,0.77732]
[1760022090588,0.3819532,121730.0,121720.0,3.21103296]
[1760022090790,0.41393,121750.0,121720.0,0.82543576]
[1760022090991,0.41393,121740.0,121730.0,2.0512]
[1760022091187,0.43508264,121740.0,121730.0,2.0512]
[1760022091492,0.05313,121730.0,121720.0,2.05116]
[1760022091791,0.02115264,121730.0,121720.0,2.51579576]
[1760022091988,0.41393,121740.0,121720.0,2.51579576]
[1760022092186,0.3608,121730.0,121720.0,2.43567296]
[1760022092386,0.38195267,121730.0,121720.0,2.51779576]
[1760022092588,0.38195267,121730.0,121720.0,3.21487296]
[1760022092785,0.02115267,121730.0,121720.0,2.05512]
[1760022092991,0.41393,121740.0,121720.0,3.29491576]
[1760022093189,0.43486379,121740.0,121720.0,3.29491576]
[1760022093392,0.43486379,121740.0,121720.0,2.9124028]
[1760022093591,0.43486379,121740.0,121720.0,3.29591576]
[1760022093992,0.43486379,121740.0,121720.0,2.51875576]
[1760022094188,0.38173379,121740.0,121730.0,0.77712]
[1760022094493,0.38173379,121740.0,121730.0,0.8592361]
[1760022094696,0.02093379,121740.0,121730.0,0.46462906]
[1760022094991,0.02093379,121740.0,121730.0,0.8591961]
[1760022095291,0.02093379,121740.0,121730.0,1.24170906]
[1760022095492,0.02093379,121740.0,121730.0,0.8591961]
[1760022095696,0.02093379,121740.0,121730.0,1.24170906]
[1760022095888,0.02093379,121740.0,121730.0,1.60350906]
[1760022096093,0.02093379,121740.0,121730.0,0.82642906]
[1760022096294,0.02093379,121740.0,121730.0,1.62001342]
[1760022096493,0.02093379,121740.0,121730.0,1.62101342]
[1760022096793,0.38173379,121740.0,121730.0,0.01858436]
[1760022097095,0.38173379,121740.0,121730.0,2.72226436]
[1760022097293,0.43486379,121740.0,121730.0,2.06946436]
[1760022097596,0.02093379,121740.0,121730.0,2.53409342]
[1760022097791,0.02093379,121740.0,121730.0,3.67177342]
[1760022097994,0.02093379,121740.0,121730.0,3.29489342]
[1760022098190,0.02093379,121740.0,121730.0,4.07177342]
[1760022098392,0.00782793,121760.0,121730.0,3.29489342]
[1760022098588,0.00782793,121760.0,121750.0,0.46461556]
[1760022098790,0.02855544,121760.0,121750.0,0.8589426]
[1760022098991,0.02855544,121760.0,121750.0,1.15935296]
[1760022099199,0.02855544,121760.0,121750.0,0.77684]
[1760022099399,0.02855544,121760.0,121740.0,0.82542096]
[1760022099600,0.02855544,121760.0,121750.0,2.9097426]
[1760022099893,0.02855544,121760.0,121750.0,2.82764]
[1760022100292,0.02855544,121760.0,121750.0,2.82752]
[1760022100595,0.38935544,121760.0,121750.0,2.82744]
[1760022101092,0.38935544,121760.0,121750.0,2.9095426]
[1760022101398,0.38935544,121760.0,121750.0,2.82744]
[1760022101696,0.36862793,121760.0,121750.0,2.1328226]
[1760022101896,0.36862793,121760.0,121750.0,2.97400865]
[1760022102098,0.36862793,121760.0,121750.0,2.57988161]
[1760022102292,0.36862793,121760.0,121750.0,3.35652161]
[1760022102491,0.00782793,121760.0,121750.0,3.35652161]
[1760022102691,0.00782793,121760.0,121750.0,3.71732161]
[1760022102895,0.00782793,121760.0,121750.0,3.35652161]
[1760022103095,0.00782793,121760.0,121750.0,2.97400865]
[1760022103593,0.00782793,121760.0,121750.0,3.71732161]
[1760022103894,0.00782793,121760.0,121750.0,1.28996161]
[1760022104094,0.00782793,121760.0,121750.0,4.11704161]
[1760022104299,0.00332793,121760.0,121750.0,2.94052161]
[1760022104495,0.00332793,121760.0,121750.0,3.34052161]
[1760022104686,0.00332793,121760.0,121750.0,4.11700161]
[1760022104891,0.00332793,121760.0,121750.0,3.34052161]
[1760022105095,0.00332793,121760.0,121750.0,4.11700161]
[1760022105298,0.00332793,121760.0,121750.0,4.11800161]
[1760022105687,0.00332793,121760.0,121750.0,1.29096161]
[1760022105892,0.00332793,121760.0,121750.0,4.11880161]
[1760022106097,0.00332793,121760.0,121750.0,3.72491457]
[1760022106398,0.00332793,121760.0,121750.0,2.94240161]
[1760022106598,0.00332793,121760.0,121750.0,2.11698605]
[1760022106794,0.00332793,121760.0,121750.0,2.89334605]
[1760022107094,0.00332793,121760.0,121750.0,3.71876161]
[1760022107302,0.00332793,121760.0,121750.0,3.71868161]
[1760022107797,0.00332793,121760.0,121750.0,2.89318605]
[1760022107998,0.00332793,121760.0,121750.0,2.58148161]
[1760022108198,0.36412793,121760.0,121750.0,2.19896865]
[1760022108495,0.36412793,121760.0,121750.0,3.35780161]
[1760022108697,0.41823793,121760.0,121750.0,2.89314605]
[1760022108899,0.41823793,121760.0,121750.0,2.11682605]
[1760022109400,1.20075089,121760.0,121750.0,2.89306605]
[1760022109899,1.20075089,121760.0,121750.0,0.06654605]
[1760022109900,1.29462089,121760.0,121750.0,0.06654605]
[1760022110202,1.29462089,121760.0,121750.0,0.84274605]
[1760022111203,0.91210793,121760.0,121750.0,0.84274605]
[1760022111503,1.29462089,121760.0,121750.0,0.84174605]
[1760022111995,1.29462089,121760.0,121750.0,0.001]
[1760022112198,1.31182536,121760.0,121750.0,0.77812]
[1760022112397,1.31182536,121760.0,121750.0,0.77612]
[1760022112593,0.05411,121720.0,121710.0,0.08150796]
[1760022112791,0.41491,121720.0,121710.0,2.13178796]
[1760022112995,0.79742296,121720.0,121710.0,2.13178796]
[1760022113202,0.41491,121720.0,121710.0,2.90790796]
[1760022113795,0.41491,121720.0,121710.0,2.13178796]
[1760022114191,0.41491,121720.0,121710.0,2.90786796]
[1760022114596,0.41491,121720.0,121710.0,2.90986796]
[1760022115198,0.05411,121720.0,121710.0,2.21591756]
[1760022115401,0.79742296,121730.0,121710.0,2.90982796]
[1760022115696,0.79742296,121730.0,121710.0,2.13578796]
[1760022115896,0.41491,121720.0,121710.0,2.13578796]
[1760022116093,0.41491,121720.0,121710.0,2.91182796]
[1760022116694,0.79742296,121730.0,121710.0,2.91182796]
[1760022116898,0.41491,121730.0,121720.0,0.77604]
[1760022117205,0.3608,121730.0,121720.0,0.77604]
[1760022117401,0.41491,121730.0,121710.0,0.08150796]
[1760022117701,0.41491,121720.0,121710.0,2.13602796]
[1760022117903,0.41491,121720.0,121710.0,2.91206796]
[1760022118106,0.41491,121720.0,121710.0,2.13602796]
[1760022118294,0.41491,121720.0,121710.0,2.91202796]
[1760022118499,0.41491,121720.0,121710.0,0.08550796]
[1760022118698,0.41491,121720.0,121710.0,2.13602796]
[1760022118897,0.41491,121720.0,121710.0,2.91002796]
[1760022119101,1.29129296,121720.0,121710.0,0.06429508]
[1760022119505,1.29129296,121720.0,121710.0,0.84025508]
[1760022119905,1.29129296,121720.0,121710.0,0.84229508]
[1760022120102,1.29129296,121720.0,121710.0,0.06629508]
[1760022120405,1.19742296,121720.0,121710.0,0.84225508]
[1760022120795,1.19742296,121720.0,121710.0,0.84425508]
[1760022121000,1.29129296,121720.0,121710.0,0.06829508]
[1760022121506,1.29129296,121720.0,121710.0,0.00406941]
[1760022121699,1.29129296,121720.0,121710.0,0.78002941]
[1760022122599,1.29129296,121720.0,121710.0,0.00406941]
[1760022122902,1.29129296,121720.0,121710.0,0.77998941]
[1760022123309,0.90878,121720.0,121710.0,0.00406941]
[1760022123601,1.29129296,121720.0,121710.0,0.77994941]
[1760022123999,1.29129296,121720.0,121710.0,0.00406941]
[1760022124201,1.29129296,121720.0,121710.0,0.77994941]
[1760022124396,1.29129296,121720.0,121710.0,0.00406941]
[1760022124605,1.29129296,121720.0,121710.0,0.77994941]
[1760022124905,1.29129296,121720.0,121710.0,0.00406941]
[1760022125204,1.29129296,121720.0,121710.0,0.77994941]
[1760022125800,0.41491,121720.0,121710.0,0.00406941]
[1760022126102,0.79742296,121720.0,121710.0,0.77990941]
[1760022126297,0.89129296,121720.0,121710.0,0.77990941]
[1760022126702,0.89129296,121720.0,121710.0,0.00406941]
[1760022127206,1.29129296,121720.0,121710.0,0.00406941]
[1760022127810,1.29129296,121720.0,121710.0,0.77990941]
[1760022128010,1.29129296,121720.0,121710.0,0.00406941]
[1760022128202,1.67380592,121720.0,121690.0,2.05076]
[1760022128404,1.54073592,121700.0,121690.0,2.05076]
[1760022128604,1.54073592,121700.0,121670.0,0.10315445]
[1760022128605,0.05411,121680.0,121670.0,0.10315445]
[1760022128804,1.25209296,121680.0,121670.0,0.10315445]
[1760022129104,1.25209296,121680.0,121670.0,0.87895445]
[1760022129306,0.05411,121660.0,121650.0,0.14614564]
[1760022129508,0.89136214,121660.0,121650.0,0.14614564]
[1760022129710,0.89136214,121660.0,121650.0,0.7758]
[1760022129909,0.79749214,121660.0,121650.0,0.01530785]
[1760022130102,0.05417918,121660.0,121640.0,2.64004144]
[1760022130308,0.05417918,121660.0,121650.0,0.77576]
[1760022130604,0.05417918,121660.0,121650.0,0.84107548]
[1760022130809,0.05417918,121660.0,121650.0,0.84307548]
[1760022131205,0.41497918,121660.0,121650.0,0.98922112]
[1760022131709,0.05417918,121660.0,121650.0,0.99122112]
[1760022131912,0.05417918,121660.0,121650.0,1.00670852]
[1760022132111,0.05417918,121660.0,121650.0,0.86060288]
[1760022132310,0.43669214,121660.0,121650.0,0.86060288]
[1760022132705,0.05417918,121660.0,121650.0,0.86060288]
[1760022133310,0.43669214,121660.0,121650.0,0.86060288]
[1760022133504,0.79749214,121660.0,121650.0,0.86060288]
[1760022133706,0.79749214,121660.0,121650.0,0.86056288]
[1760022134006,0.41497918,121660.0,121650.0,0.86056288]
[1760022134712,0.05417918,121660.0,121650.0,0.08480288]
[1760022134911,0.05417918,121660.0,121650.0,0.94273298]
[1760022135214,0.05417918,121660.0,121650.0,0.08480288]
[1760022135517,0.41497918,121660.0,121650.0,0.86056288]
[1760022135701,0.41497918,121660.0,121650.0,0.08480288]
[1760022135904,0.41497918,121660.0,121650.0,0.86056288]
[1760022139011,6.918e-05,121660.0,121650.0,0.94273298]
[1760022139215,6.918e-05,121660.0,121650.0,1.68596594]
[1760022139413,6.918e-05,121660.0,121650.0,2.08596594]
[1760022139719,0.3608,121690.0,121680.0,0.0821498]
[1760022139912,0.41588,121710.0,121690.0,0.0821431]
[1760022140217,0.41588,121710.0,121700.0,0.10313584]
[1760022140408,0.41588,121710.0,121700.0,0.87877584]
[1760022140911,0.05508,121710.0,121700.0,0.10313584]
[1760022141110,0.41588,121720.0,121700.0,1.3285819]
[1760022141311,0.41588,121720.0,121710.0,0.77564]
[1760022141514,0.50287,121720.0,121710.0,0.06565115]
[1760022141814,0.05508,121710.0,121700.0,2.15469584]
[1760022142014,0.41588,121720.0,121700.0,2.15469584]
[1760022142216,0.41588,121720.0,121710.0,0.87873584]
[1760022142416,0.41588,121720.0,121710.0,0.10313584]
[1760022142611,0.41688,121720.0,121710.0,0.79036068]
[1760022143009,0.41688,121720.0,121710.0,0.89349652]
[1760022143405,0.41788,121720.0,121710.0,0.79036068]
[1760022144313,0.41688,121720.0,121710.0,0.79036068]
[1760022144514,0.41788,121720.0,121710.0,0.79036068]
[1760022145013,0.41688,121720.0,121710.0,0.01680068]
[1760022145213,0.41588,121720.0,121710.0,2.84560068]
[1760022145419,0.41588,121720.0,121710.0,2.9108248]
[1760022145914,0.79839296,121720.0,121710.0,2.1353848]
[1760022146119,0.88538296,121720.0,121710.0,2.89394412]
[1760022146314,0.41588,121720.0,121710.0,2.91088871]
[1760022146815,0.41588,121720.0,121710.0,0.08416871]
[1760022147119,0.41588,121720.0,121710.0,0.06922412]
[1760022147320,0.41588,121720.0,121710.0,0.84454412]
[1760022147623,0.79839296,121720.0,121710.0,0.84454412]
[1760022147820,0.79839296,121720.0,121710.0,0.94767996]
[1760022148319,0.88538296,121720.0,121710.0,0.94767996]
[1760022148520,0.88538296,121720.0,121710.0,0.10713584]
[1760022148720,1.28538296,121720.0,121710.0,0.77924]
[1760022148916,1.28538296,121720.0,121710.0,0.004]
[1760022149121,1.35146229,121720.0,121710.0,0.004]
[1760022149317,1.35146229,121720.0,121710.0,0.77924]
[1760022150117,1.31129678,121720.0,121710.0,0.77924]
[1760022150317,1.31129678,121720.0,121710.0,0.004]
[1760022150520,1.31129678,121720.0,121710.0,0.7792]
[1760022152217,1.31129678,121720.0,121710.0,0.004]
[1760022152518,1.31129678,121720.0,121710.0,0.77912]
[1760022153621,0.96894933,121720.0,121710.0,0.77912]
[1760022153821,1.31129678,121720.0,121710.0,0.77912]
[1760022158127,1.31129678,121720.0,121710.0,0.004]
[1760022158624,1.31129678,121720.0,121710.0,0.67688]
[1760022159022,1.31129678,121720.0,121710.0,0.77896]
[1760022160130,1.31129678,121720.0,121710.0,0.004]
[1760022160329,1.31129678,121720.0,121710.0,0.77892]
[1760022160725,1.31129678,121720.0,121710.0,0.004]
[1760022160924,1.31129678,121720.0,121680.0,2.05128]
[1760022160925,0.05333,121690.0,121680.0,2.05128]
[1760022161228,1.11727745,121690.0,121680.0,2.82612]
[1760022161425,0.05333,121680.0,121650.0,0.3608]
[1760022161628,0.39567745,121660.0,121650.0,0.01530103]
[1760022161827,0.39567745,121660.0,121650.0,2.05132]
[1760022161828,0.05333,121660.0,121650.0,2.05132]
[1760022162024,0.41413,121660.0,121650.0,2.82616]
[1760022163125,0.41413,121660.0,121640.0,0.52307741]
[1760022163327,0.41413,121650.0,121640.0,0.22624625]
[1760022163526,0.84706745,121650.0,121640.0,0.21082892]
[1760022163730,0.50472,121650.0,121640.0,0.98562892]
[1760022163929,0.50472,121650.0,121640.0,0.06468328]
[1760022164128,0.84706745,121650.0,121640.0,0.7748]
[1760022164424,0.84706745,121650.0,121640.0,0.06968236]
[1760022164831,0.84706745,121650.0,121640.0,0.77876]
[1760022165330,0.50472,121650.0,121640.0,0.78276]
[1760022165523,0.75647745,121650.0,121640.0,0.78276]
[1760022165724,0.05371,121660.0,121640.0,0.7688]
[1760022165924,0.05371,121660.0,121650.0,1.6177301]
[1760022166130,0.05371,121660.0,121650.0,1.13556]
[1760022166329,0.05371,121660.0,121650.0,1.13552]
[1760022166726,0.05371,121650.0,121640.0,2.41628]
[1760022167028,0.05371,121650.0,121640.0,3.19104]
[1760022167229,0.05371,121650.0,121640.0,2.41428]
[1760022167438,0.84301745,121650.0,121640.0,0.77672]
[1760022167735,0.84301745,121650.0,121640.0,0.77472]
[1760022167932,0.84301745,121650.0,121640.0,0.77672]
[1760022168331,0.50067,121650.0,121640.0,0.77672]